Cogmind - Beta 17 @@@ ROGUE MODE // 2026.07.13 @ 17:08:17 // Winter2019/RPGLIKE Player: Gallgagger Result: Self-destructed Performance ------------- Evolutions (0) 0 Regions Visited (4) 800 Robots Destroyed (1) 5 Value Destroyed (10) 10 Prototype IDs (23) 460 Alien Tech Used (0) 0 Bonus (360) 360 TOTAL SCORE: 1635 Bonus ------- Follower Combat Kills 60 Aligned with FarCom 300 Cogmind --------- Core Integrity 252/800 Matter 66/300 Energy 99/100 System Corruption 4% Temperature Cool (0) Movement Core (50) Location -9/Mines Parts ------- > --- POWER (1) -------- (None) > --- PROPULSION (4) --- Flying Fortress v7 > --- UTILITY (1) ------ Supersonic Drone Bay (1/1) > --- WEAPON (1) ------- (None) > --- INVENTORY (0) ---- (None) Peak State ------------ > --- POWER ------------ (None) > --- PROPULSION ------- Flying Fortress v7 > --- UTILITY ---------- Supersonic Drone Bay > --- WEAPON ----------- (None) > --- INVENTORY -------- (None) [Rating: 40] Favorites ----------- Power None Propulsion Flight Unit Flight Unit Flight Unit Utility Supersonic Drone Bay Device Supersonic Drone Bay Weapon None Build | -11 -10 -10 -10 -9 ------- Run | Yrd Mat Min Exi Min Slots Evolved 3 | . 1 . 2 . Power . | . . . . . Propulsion 3 | . 1 . 2 . Utility . | . . . . . Weapon . | . . . . . Parts Attached 4 | . 2 . 2 . Power . | . . . . . Engine . | . . . . . Core . | . . . . . Reactor . | . . . . . Propulsion 3 | . 2 . 1 . Treads . | . . . . . Leg . | . . . . . Wheel . | . . . . . Hover . | . . . . . Flight 3 | . 2 . 1 . Utility 1 | . . . 1 . Device 1 | . . . 1 . Storage . | . . . . . Processor . | . . . . . Hackware . | . . . . . Protection . | . . . . . Artifact . | . . . . . Weapon . | . . . . . Energy Gun . | . . . . . Energy Cannon . | . . . . . Ballistic Gun . | . . . . . Ballistic Cannon . | . . . . . Launcher . | . . . . . Special Weapon . | . . . . . Impact Weapon . | . . . . . Slashing Weapon . | . . . . . Piercing Weapon . | . . . . . Special Melee Weapon . | . . . . . Unidentified Prototypes . | . . . . . Parts Lost . | . . . . . Power . | . . . . . Propulsion . | . . . . . Utility . | . . . . . Weapon . | . . . . . Highest Loss Streak . | . . . . . To Critical Strikes . | . . . . . Average Backups . | . . . . . Power . | . . . . . Propulsion . | . . . . . Utility . | . . . . . Weapon . | . . . . . Tool/Special . | . . . . . Unused Backups . | . . . . . Power . | . . . . . Propulsion . | . . . . . Utility . | . . . . . Weapon . | . . . . . Tool/Special . | . . . . . Average Slot Usage (%) 27 | . 16 40 29 28 Flight 23 | . 16 40 23 14 Device 3 | . . . 6 14 Peak Build Rating 40 | . 2 2 40 40 Average Rating 12 | . . 2 25 40 On Entrance 8 | . . 2 2 40 Avg Prop Armor Cover (%) 41 | . . . 41 41 Naked Turns 50 | . 49 . 1 . Heaviest Build 1 | . . . 1 1 Greatest Support 50 | 3 8 8 50 3 Greatest Overweight (x) . | . . . . . Average Overweight (x) . | . . . . . Largest Inventory Capacity . | . . . . . Average Capacity . | . . . . . Most Carried . | . . . . . Average Carried . | . . . . . Final Capacity . | . . . . . Final Carried . | . . . . . Class Distribution -------------------- 100% | Mutant Dominant Class ---------------- Mutant | -10/Materials Mutant | -10/Mines Mutant | -10/Exiles Mutant | -9/Mines Resources | -11 -10 -10 -10 -9 ----------- Run | Yrd Mat Min Exi Min Matter Collected . | . . . . . Remotely . | . . . . . Salvage Created 28 | . 28 . . . Parts 3 | . 3 . . . Haulers Intercepted . | . . . . . Recyclers Shooed . | . . . . . Parts Field Recycled . | . . . . . Retrieved Matter . | . . . . . Parts Self-Destructed . | . . . . . Prevented . | . . . . . Parts Restored . | . . . . . Kills | -11 -10 -10 -10 -9 ------- Run | Yrd Mat Min Exi Min Combat Hostiles Destroyed 1 | . 1 . . . Melee 1 | . 1 . . . Classes Destroyed 1 | . 1 . . . Swarmer 1 | . 1 . . . Best Kill Streak 1 | . 1 . . . Combat Bots Only 1 | . 1 . . . Max Kills in Single Turn 1 | . 1 . . . Gunslinging . | . . . . . Exploded . | . . . . . Melee 1 | . 1 . . . Uniques/NPCs Destroyed . | . . . . . Combat | -11 -10 -10 -10 -9 -------- Run | Yrd Mat Min Exi Min Hostile Shots Fired 95 | . 89 6 . . Missed 36 | . 33 3 . . Hits 59 | . 56 3 . . Projectile 59 | . 56 3 . . Critical Strikes 1 | . 1 . . . Damage Taken 572 | 6 504 44 18 . Core 548 | 6 486 42 14 . Absorbed by Shields . | . . . . . Redirected to Core 80 | . 58 8 14 . Core Remaining (%) 99 | 99 . . . . Volleys Fired . | . . . . . Largest . | . . . . . Hottest . | . . . . . Shots Fired . | . . . . . Gun . | . . . . . Cannon . | . . . . . Launcher . | . . . . . Special . | . . . . . Kinetic . | . . . . . Thermal . | . . . . . Explosive . | . . . . . Electromagnetic . | . . . . . Robot Hit Streak . | . . . . . Robot Miss Streak . | . . . . . Penetration Max . | . . . . . Secondary Targets . | . . . . . Shots Hit Robots . | . . . . . Core Hits 3 | . 3 . . . Critical Kills . | . . . . . Critical Parts Destroyed . | . . . . . Critical Strikes . | . . . . . Melee Attacks . | . . . . . Impact . | . . . . . Slashing . | . . . . . Piercing . | . . . . . Sneak Attacks . | . . . . . Combat Hostiles . | . . . . . Follow-up Attacks . | . . . . . Damage Inflicted 85 | 13 54 . 18 . Guns . | . . . . . Cannons . | . . . . . Explosions . | . . . . . Melee . | . . . . . Ramming 85 | 13 54 . 18 . Kinetic . | . . . . . Thermal . | . . . . . Explosive . | . . . . . Electromagnetic . | . . . . . Impact . | . . . . . Slashing . | . . . . . Piercing . | . . . . . Highest Corruption 4 | . 4 4 4 4 Average Corruption 3 | . 2 4 4 4 Corruption Purged . | . . . . . Corruption Blocked . | . . . . . Effects 6 | . 2 1 3 . Message Errors 2 | . 1 . 1 . Matter Fused 4 | . 1 1 2 . Overload Shots . | . . . . . Overflow Damage . | . . . . . Projectiles . | . . . . . Explosions . | . . . . . Melee . | . . . . . Knockbacks 2 | 1 1 . . . Impact 2 | 1 1 . . . Kinetic . | . . . . . Secondary . | . . . . . Self-Inflicted Damage 47 | 6 23 . 18 . Shots . | . . . . . Rammed 15 | 1 14 . . . Targets Rammed 15 | 1 14 . . . Kicked . | . . . . . Crushed . | . . . . . Highest Temperature . | . . . . . Average Temperature . | . . . . . Received Heat Transfer 72 | . 48 24 . . Siege Activations . | . . . . . Martial Activations . | . . . . . Shielding Activations . | . . . . . Robots Disrupted . | . . . . . Combat Hostiles . | . . . . . Robots Corrupted . | . . . . . Combat Hostiles . | . . . . . Parts Fried . | . . . . . Impact Corruptions . | . . . . . Robots Melted . | . . . . . Combat Hostiles . | . . . . . Parts Melted . | . . . . . Heat Transferred . | . . . . . Parts Sabotaged . | . . . . . Parts Stolen . | . . . . . Parts Stripped . | . . . . . Power Chain Reactions . | . . . . . Alert | -11 -10 -10 -10 -9 ------- Run | Yrd Mat Min Exi Min Maximum Alert Level . | . . . . . Low Security (%) 100 | 100 100 100 . 100 Level 1 . | . . . . . Level 2 . | . . . . . Level 3 . | . . . . . Level 4 . | . . . . . Level 5 . | . . . . . High Security . | . . . . . Max Security . | . . . . . Peak Influence 82 | . 60 82 . . Initial 34 | . . 34 . . Average 19 | . 7 49 . . Influence Increases 168 | . 110 58 . . Destroy 0b10 Robot/C 60 | . 20 40 . . Destroy Leader 10 | . . 10 . . Allied During Kill 8 | . . 8 . . Lose Combat Pursuer 90 | . 90 . . . Influence Decreases 168 | . 20 96 52 . Entered New Map 108 | . . 56 52 . Time Decay 40 | . 20 20 . . Lost Ally 20 | . . 20 . . Squads Dispatched 3 | . 3 . . . Investigation 1 | . 1 . . . Extermination . | . . . . . Reinforcement 2 | . 2 . . . Assault . | . . . . . Garrison . | . . . . . Intercept . | . . . . . Searches Triggered . | . . . . . Construction Impeded . | . . . . . Haulers Reinforced . | . . . . . Active Scanning Responses . | . . . . . Cargo Convoy Interrupts . | . . . . . Stealth | -11 -10 -10 -10 -9 --------- Run | Yrd Mat Min Exi Min Distress Signals 1 | . 1 . . . Communications Jammed . | . . . . . Distress Signals . | . . . . . Times Spotted 33 | . 19 14 . . Peak Tracking Total 21 | . 14 21 9 . Tactical Retreats 2 | . 1 1 . . Traps | -11 -10 -10 -10 -9 ------- Run | Yrd Mat Min Exi Min Traps Triggered 3 | . 3 . . . Indirectly . | . . . . . Trap Hack Attempts . | . . . . . Triggered . | . . . . . Disarmed . | . . . . . Reprogrammed . | . . . . . Reused . | . . . . . Traps Extracted . | . . . . . Installed . | . . . . . Triggered . | . . . . . Machines | -11 -10 -10 -10 -9 ---------- Run | Yrd Mat Min Exi Min Machines Disabled 1 | . . . 1 . Max in Single Turn 1 | . . . 1 . Machines Repaired . | . . . . . Machines Dismantled . | . . . . . Machines Sabotaged . | . . . . . Overloaded Fab Kills . | . . . . . Hacking | -11 -10 -10 -10 -9 --------- Run | Yrd Mat Min Exi Min Machines Accessed 1 | . . . 1 . Terminals . | . . . . . Fabricators . | . . . . . Repair Stations . | . . . . . Recycling Units . | . . . . . Scanalyzers . | . . . . . Garrison Access . | . . . . . Total Hacks 1 | . . . 1 . Successful 1 | . . . 1 . Failed . | . . . . . Catastrophic . | . . . . . Database Lockouts . | . . . . . Manual 1 | . . . 1 . Terminals . | . . . . . Fabricators . | . . . . . Repair Stations . | . . . . . Recycling Units . | . . . . . Scanalyzers . | . . . . . Garrison Access . | . . . . . Terminal Hacks 1 | . . . 1 . Proto ID Catalog 1 | . . . 1 . Fabricator Hacks . | . . . . . Repair Station Hacks . | . . . . . Recycling Unit Hacks . | . . . . . Scanalyzer . | . . . . . Garrison Access Hacks . | . . . . . Unauthorized Hacks . | . . . . . Terminals . | . . . . . Fabricators . | . . . . . Repair Stations . | . . . . . Recycling Units . | . . . . . Scanalyzers . | . . . . . Garrison Access . | . . . . . Data Cores Recovered . | . . . . . Used . | . . . . . Hacking Detections . | . . . . . Full Trace Events . | . . . . . Feedback Events . | . . . . . Feedback Blocked . | . . . . . Robot Schematics Acquired . | . . . . . Robots Built . | . . . . . Authchips . | . . . . . Time . | . . . . . Total Robot Build Rating . | . . . . . Part Schematics Acquired . | . . . . . Parts Built . | . . . . . Authchips . | . . . . . Time . | . . . . . Total Part Build Rating . | . . . . . Part Studies Acquired . | . . . . . Parts Repaired . | . . . . . Time . | . . . . . Parts Recycled . | . . . . . Recycled Matter . | . . . . . Retrieved Matter . | . . . . . Retrieved Components . | . . . . . Parts Scanalyzed . | . . . . . Part Schematics Acquired . | . . . . . Parts Damaged . | . . . . . Bothacking | -11 -10 -10 -10 -9 ------------ Run | Yrd Mat Min Exi Min Used RIF Installer . | . . . . . Robots Hacked . | . . . . . Non-combat . | . . . . . Combat . | . . . . . Robot Hacks Applied . | . . . . . Relay Couplers Released . | . . . . . Fabnet Peak Effective % . | . . . . . Robots Rewired . | . . . . . Allies Hacked . | . . . . . Hacks Repelled . | . . . . . Allies | -11 -10 -10 -10 -9 -------- Run | Yrd Mat Min Exi Min Total Allies 3 | . . 3 . . Largest Group 3 | . . 3 . . Highest-Rated Group 40 | . . 40 . . Highest-Rated Ally 16 | . . 16 . . Total Orders . | . . . . . Ally Attacks 12 | . . 12 . . Total Damage 133 | . . 133 . . Kills 2 | . . 2 . . Allies Corrupted . | . . . . . Allies Melted . | . . . . . Intel | -11 -10 -10 -10 -9 ------- Run | Yrd Mat Min Exi Min Active Infowar (turns) . | . . . . . Robot Analysis Total . | . . . . . Derelict Logs Recovered . | . . . . . Drone Launches . | . . . . . Drone Recoveries . | . . . . . Exploration | -11 -10 -10 -10 -9 ------------- Run | Yrd Mat Min Exi Min Turns Passed 285 | 10 92 50 128 5 Spaces Moved 615 | 19 174 136 277 9 Core 132 | 19 68 . 36 9 Treads . | . . . . . Legs . | . . . . . Wheels . | . . . . . Hover . | . . . . . Flight 483 | . 106 136 241 . Fastest Speed 37 | 50 37 37 37 50 Average Speed 42 | 50 42 37 44 50 Slowest Speed 50 | 50 50 37 50 50 Overloaded Moves . | . . . . . Propulsion Burnouts . | . . . . . Robots Hopped 10 | . 10 . . . Potential Cave-ins . | . . . . . Cave-ins Triggered . | . . . . . Exploration Rate (%) 29 | 3 49 27 62 7 Regions Visited 4 Branch Regions 3 Pre-discovered Areas 1 | . . . . 1 Known Exits Taken . | . . . . . Unknown Exits Taken 4 | 1 1 1 1 . Scrap Searched . | . . . . . Spaces Dug . | . . . . . Terrain Destroyed . | . . . . . Melee . | . . . . . Projectile . | . . . . . AOE . | . . . . . Terrain Rammed 1 | . . . 1 . Walls Destroyed . | . . . . . Machines Disabled 1 | . . . 1 . Actions | -11 -10 -10 -10 -9 --------- Run | Yrd Mat Min Exi Min Total 624 | 19 180 135 281 9 Wait . | . . . . . Move 594 | 18 156 135 276 9 Hop 7 | . 7 . . . Pick Up . | . . . . . Fast Attach 5 | . 3 . 2 . Attach . | . . . . . Detach . | . . . . . Swap . | . . . . . Drop 2 | . . . 2 . Fire . | . . . . . Melee . | . . . . . Ram 16 | 1 14 . 1 . Kick . | . . . . . Crush . | . . . . . Escape Stasis . | . . . . . Rewire . | . . . . . Trap . | . . . . . Miscellaneous . | . . . . . Route ------- -11/Scrapyard -10/Materials (discovered 2 exits: [*Mat] / [*Min]) -10/Mines -10/Exiles -9/Mines (discovered 1 exit: [*Mat]) History --------- Turn | Location | Event 3 | -11/Scrapyard | Discovered new exit (range 15) 11 | -11/Scrapyard | Entered Materials 61 | -10/Materials | Upgraded with Propulsion slot (x1) 68 | -10/Materials | Discovered new exit (range 16) 83 | -10/Materials | Core integrity fell below 50% 100 | -10/Materials | Discovered new exit (range 10) 103 | -10/Materials | Entered Mines 107 | -10/Mines | Met a Derelict bent on vengeance 122 | -10/Mines | Assisted by bots powering up and referring to "LRC-V3" 127 | -10/Mines | Assembled infested the area 149 | -10/Mines | Deemed a non-threat by the Exiles lab entrance 149 | -10/Mines | Discovered new exit (range 5) 153 | -10/Mines | Entered Exiles 163 | -10/Exiles | Met 8R-AWN 169 | -10/Exiles | Met EX-HEX 179 | -10/Exiles | Met EX-BIN 185 | -10/Exiles | Aligned with FarCom system 185 | -10/Exiles | Given EX-Vault access code 194 | -10/Exiles | Opened EX-Vault 196 | -10/Exiles | Upgraded with Propulsion slot (x2) 198 | -10/Exiles | Found Flying Fortress v7 209 | -10/Exiles | Warned to stay clear of 0b10 Research branches 222 | -10/Exiles | Found Supersonic Drone Bay 250 | -10/Exiles | Met EX-DEC 264 | -10/Exiles | Attacked by the Exiles 277 | -10/Exiles | Discovered new exit (range 10) 281 | -10/Exiles | Stole two prototypes: Flying Fortress v7, Supersonic Drone Bay 281 | -10/Exiles | Entered Mines 283 | -9/Mines | Reached level 2 283 | -9/Mines | Discovered new exit (range 9) 285 | -9/Mines | Learned location of Storage (-8) 286 | -9/Mines | Self-destructed Last Messages --------------- 00263_ Machine disabled. 00263_ Supersonic Drone Bay broken. 00263_ Destabilizing: Short circuit. 00263_ Flying Fortress v7 broken. 00263_ Destabilizing: Short circuit. 00264_ EXILES: Hostile robot within lab perimeter. Defensive protocols time, folks! 00266_ EX-DEC deploys DAS Turret. 00270_ System corrupted: Matter fused (-5). 00277_ EXIT=FOUND LOCATION=UNKNOWN GOAL=ESCAPE 00282_ K-01 Serf collects debris. 00283_ Reached level 2. 00283_ EXIT=FOUND 00285_ A derelict emerges from the shadows: "Are any of them following you? I'm here trying to lose some heat after our second raid on Storage failed. Whatever you do stay away from that place, they've tightened security following our previous successful raids." World map updated: -8/Storage. Map ----- +----------------------------------------------------+ | | | | | | | | | | | | | | | | | ?????????????????????????????????????????????????? | | ?????????????????????????????????????????????????? | | ?????????????????????????????????????????????????? | | ????????????????????#######??????????????????????? | | ????????????????????# #??????????????????????? | | ????????????????????# """#??????????????????????? | | ????????????????????# """#??????????????????????? | | ????????????????????# """#??????????????????????? | | ????????????????????# #??????????????????????? | | ????????????????????# #??????????????????????? | | ????????????????????# k #??????????????????????? | | ????????????????????# #??????????????????????? | | ????????????????????##### #??????????????????????? | | ??????????????# ###### #??????????????????????? | | ??????????????# #??????????????????????? | | ???????????????# ###### #??????????????????????? | | ???????????????????????## ##?????????????????????? | | ???????????????????????# @ #?????????????????????? | | ??????????????????????# #????????????????????? | | ?????????????????????# ???????????????????? | | ?????????????????????# < ?????????????????? | | ?????????????????????## ???????????????? | | ??????????????????????## ## #####??????????????? | | ???????????????????????# #?###??????????????????? | | ??????????????????????? #??????????????????????? | | ???????????????????????# ??????????????????????? | | ???????????????????????# #??????????????????????? | | ???????????????????????# ???????????????????????? | | ???????????????????????# ???????????????????????? | | ??????????????????????? ???????????????????????? | | ??????????????????????? ???????????????????????? | | ??????????????????????? ???????????????????????? | | ??????????????????????? ???????????????????????? | | ?????????????????????????????????????????????????? | | ?????????????????????????????????????????????????? | | ?????????????????????????????????????????????????? | | ?????????????????????????????????????????????????? | | ?????????????????????????????????????????????????? | | ?????????????????????????????????????????????????? | | ?????????????????????????????????????????????????? | | ?????????????????????????????????????????????????? | | ?????????????????????????????????????????????????? | +----------------------------------------------------+ Best States ------------- Heat Dissipation 25 Energy Generation 5 Energy Capacity 100 Matter Stores 143 Matter Capacity 300 Sight Range 16 Terrain Scan Density 10 Evasion (%) 62 Item Schematics ----------------- None Robot Schematics ------------------ None Fabricated ------------ Nothing Repaired ---------- Nothing Studied --------- None Alien Tech Used ----------------- None Achievements -------------- None Challenges ------------ None RPGLIKE | -11 -10 -10 -10 -9 --------- Run | Yrd Mat Min Exi Min Levels Raised 1 | . . . . 1 XP Earned 4729 | 3000 100 779 350 500 XP Spent 2560 | . 660 . 1900 . Upgrades 7 | . 5 . 2 . Propulsion Slot 3 | . 1 . 2 . Core Integrity 4 | . 4 . . . Protomatter Created . | . . . . . Protomatter Decayed 30 | . 18 12 . . Game ------ Seed LightExoskeletonReprisal Manual? 0 Play Time 00:02:54 Cumulative 660.0 hours Start 2026.07.13 @ 17:05:30 End 2026.07.13 @ 17:08:17 Sessions 1 Manual Loads 0 Difficulty Rogue Special Mode Winter2019/RPGLIKE Game No. 264 Rogue 110 Adventurer 154 Explorer 0 Win Type - Total 22 Types 4/5/4/3/2/1/0/1/1/1 Lore% 95 Gallery% 88 Achievement% 68 Wizard Run 0 Options --------- Layout 0 ASCII 0 Keyboard 0 Movement Numpad Keybinds 0 Fullscreen 2 Font 18/SmallcapsGlow Map View 76x50 Zoom Use 0% Tactical HUD 1 Map Filters NONE Filters NONE Steam 1 RUN: 4cd2ae67-4db1-44e1-ae2b-94f7885e34e8